bitfinex/quotes_ETHUSD_20241223
["timestamp","ask_amount","ask_price","bid_price","bid_amount"]
[1734963476283,2.984,3351.3,3350.7,0.7747]
[1734963476483,2.98427,3350.9,3350.7,0.7747]
[1734963476996,2.98489,3350.2,3350.0,1.24856462]
[1734963477360,2.98498,3350.1,3350.0,1.24856462]
[1734963477998,0.8041,3350.4,3350.0,1.24856462]
[1734963478222,2.98515,3350.0,3349.6,0.7851]
[1734963478451,0.029935,3349.9,3349.1,0.7534]
[1734963478630,2.98561,3349.4,3349.1,1.14091412]
[1734963478931,2.98502,3350.1,3349.1,1.14091412]
[1734963478932,2.98542,3349.7,3349.1,1.14091412]
[1734963479137,0.7528,3350.7,3349.3,0.7534]
[1734963479448,3.58653161,3350.8,3349.3,0.7534]
[1734963479449,2.98438,3350.8,3349.8,2.98517]
[1734963479653,4.84203298,3351.1,3349.9,0.7736]
[1734963479858,2.98456,3350.6,3349.9,0.7736]
[1734963480853,2.98482,3350.3,3349.9,0.7736]
[1734963481345,2.98489,3350.2,3349.9,0.7736]
[1734963481649,2.98499,3350.1,3349.6,0.7736]
[1734963482629,2.98474,3350.4,3349.6,0.7736]
[1734963482834,2.98482,3350.3,3349.6,1.149527]
[1734963483033,2.98482,3350.3,3349.6,0.7736]
[1734963484102,2.98431,3350.9,3349.8,2.98516]
[1734963484305,2.98447,3350.7,3350.0,0.8179]
[1734963485210,2.98447,3350.7,3350.0,1.198214]
[1734963485657,3.7773,3351.1,3350.0,1.198214]
[1734963485868,3.7773,3351.1,3349.7,0.8179]
[1734963485869,2.98496,3350.2,3349.7,0.8179]
[1734963486656,2.98404,3351.2,3349.3,4.23424462]
[1734963486657,0.029935,3350.1,3349.3,1.24856462]
[1734963486961,2.9857,3349.3,3348.9,2.01296462]
[1734963487256,2.98529,3349.8,3348.9,2.01296462]
[1734963487456,2.98568,3349.4,3348.9,2.01296462]
[1734963488270,2.98568,3349.4,3348.9,0.7644]
[1734963488615,2.98583,3349.2,3348.9,0.7644]
[1734963489004,2.98583,3349.2,3348.2,2.98665]
[1734963489005,2.98573,3349.3,3348.3,0.8133]
[1734963489267,2.9858,3349.2,3348.3,0.8133]
[1734963489413,2.9858,3349.2,3348.4,0.379995]
[1734963489610,0.7926,3349.6,3348.4,0.379995]
[1734963489834,0.7926,3349.6,3348.5,0.02985993]
[1734963490053,0.7926,3349.6,3348.4,0.379995]
[1734963490559,2.98575,3349.3,3348.4,0.379995]
[1734963490880,2.98575,3349.3,3348.5,0.4179805]
[1734963491525,3.57240964,3349.3,3348.5,0.4179805]
[1734963492569,0.822535,3349.6,3348.5,0.4179805]
[1734963492860,2.98623,3348.7,3348.3,0.8133]
[1734963493162,2.98605,3349.0,3348.3,0.8133]
[1734963493510,0.60885349,3349.5,3348.3,0.8133]
[1734963493720,2.98567,3349.4,3348.4,3.01635288]
[1734963493968,2.98567,3349.4,3348.4,2.98649]
[1734963494126,2.98567,3349.4,3348.3,0.8133]
[1734963494127,2.98578,3349.2,3348.3,0.8133]
[1734963494310,2.98615,3348.8,3348.3,0.8133]
[1734963494517,2.98626,3348.7,3348.3,0.8133]
[1734963495069,0.802,3348.7,3347.7,0.7666]
[1734963495360,0.802,3348.7,3347.8,0.41596035]
[1734963495512,2.98644,3348.5,3347.8,0.41596035]
[1734963495716,2.98644,3348.5,3347.7,0.7666]
[1734963496584,3.78824,3348.7,3347.7,3.75372]
[1734963496886,2.98624,3348.7,3347.7,3.75372]
[1734963497937,0.7603,3349.0,3347.7,3.75372]
[1734963498142,2.98632,3348.6,3347.8,0.438616]
[1734963499178,2.98635,3348.6,3347.8,0.438616]
[1734963499383,2.98688,3348.0,3347.7,0.7666]
[1734963499587,2.98703,3347.8,3346.9,0.7855]
[1734963499751,0.029935,3348.2,3346.9,0.7855]
[1734963499956,2.98723,3347.6,3346.9,0.7855]
[1734963500156,3.016855,3348.0,3346.9,0.7855]
[1734963500384,2.9873,3347.5,3346.9,0.7855]
[1734963500682,2.98742,3347.4,3346.9,0.7855]
[1734963501008,2.98767,3347.1,3346.4,0.809]
[1734963501394,2.98748,3347.3,3346.4,0.809]
[1734963501567,0.7999,3347.5,3346.4,0.809]
[1734963501767,1.178606,3347.5,3346.4,1.188738]
[1734963502382,2.98752,3347.3,3346.4,1.188738]
[1734963502583,1.178606,3347.5,3346.4,1.188738]
[1734963502881,2.98756,3347.3,3346.4,1.188738]
[1734963503384,2.98767,3347.1,3346.4,1.188738]
[1734963503606,2.98739,3347.4,3346.4,1.188738]
[1734963503826,3.7058471,3347.3,3346.4,0.809]
[1734963503989,0.029935,3347.2,3346.4,0.809]
[1734963504169,2.98788,3346.9,3346.4,0.809]
[1734963504364,2.9876,3347.2,3346.4,0.809]
[1734963504614,3.7058471,3347.3,3346.4,0.809]
[1734963504916,0.48844531,3347.2,3346.4,0.809]
[1734963505069,2.98766,3347.1,3345.7,0.7855]
[1734963505270,0.7742,3346.9,3345.7,0.7855]
[1734963505508,3.017855,3346.8,3345.7,0.7855]
[1734963505805,2.98827,3346.5,3345.7,0.7855]
[1734963506027,0.7742,3346.9,3345.9,2.9887]
[1734963506184,3.76208,3346.9,3346.0,0.3804085]
[1734963506380,2.98742,3347.4,3346.3,2.98829]
[1734963506600,2.98742,3347.4,3346.5,0.7855]
[1734963506800,2.98654,3348.4,3346.7,0.8143]
[1734963506801,2.98697,3347.9,3346.7,0.8143]
[1734963507175,2.9868,3348.1,3346.8,0.02987204]
[1734963507377,2.98687,3348.0,3347.1,0.8143]
[1734963507908,0.8286,3348.3,3347.2,3.01736202]
[1734963508114,2.98652,3348.4,3347.2,3.01736202]
[1734963508271,2.98632,3348.6,3347.4,0.8143]
[1734963508468,2.98542,3349.7,3347.6,0.8143]
[1734963508469,2.98579,3349.2,3347.6,0.8143]
[1734963508674,0.8286,3349.4,3347.8,0.8143]
[1734963508870,2.9864,3348.6,3347.8,0.8143]
[1734963509113,3.59246629,3349.2,3347.8,0.8143]
[1734963509317,0.47503513,3349.1,3347.8,0.8143]
[1734963509471,0.8286,3349.0,3347.8,0.8143]
[1734963509670,2.98643,3348.5,3347.8,0.8143]
[1734963510070,2.98622,3348.8,3347.8,0.8143]
[1734963510071,2.98657,3348.4,3347.8,0.8143]
[1734963510987,0.029935,3348.7,3347.4,0.8209]
[1734963511200,2.9869,3348.0,3347.4,0.8209]
[1734963511520,2.98695,3347.9,3347.4,0.8209]
[1734963511819,2.98713,3347.7,3347.4,0.8209]
[1734963512022,3.55,3348.0,3346.7,0.8189]
[1734963512197,2.98767,3347.1,3346.7,0.8189]
[1734963513323,4.34963155,3347.5,3346.7,0.8189]
[1734963513521,2.98775,3347.0,3346.7,0.8189]
[1734963513689,1.36228155,3347.5,3346.1,0.8189]
[1734963514016,2.98792,3346.9,3346.1,0.8189]
[1734963514174,2.98819,3346.6,3346.1,0.8189]
[1734963514380,5.98771,3347.1,3345.6,2.79072902]
[1734963514381,2.98827,3346.5,3345.6,0.8189]
[1734963514587,0.7617,3346.8,3345.6,0.8189]
[1734963514588,2.98803,3346.7,3345.7,0.97989]
[1734963514774,2.98803,3346.7,3345.7,2.98888]
[1734963515401,0.7617,3347.4,3346.0,2.98864]
[1734963515605,2.98768,3347.1,3346.0,2.98864]
[1734963515879,2.98768,3347.1,3345.8,0.8189]
[1734963515880,2.98792,3346.9,3345.8,3.8077]
[1734963516344,0.7617,3347.4,3345.8,0.8189]
[1734963516502,0.60058155,3347.5,3346.2,2.98843]
[1734963516699,2.98748,3347.3,3346.2,2.98843]
[1734963517045,2.9876,3347.2,3346.0,3.80751]
[1734963517202,2.98768,3347.1,3346.0,3.80751]
[1734963517554,2.98757,3347.2,3346.2,2.98846]
[1734963518102,3.0,3347.6,3346.3,0.83727769]
[1734963518342,2.98741,3347.4,3346.3,3.82564769]
[1734963518542,2.98724,3347.6,3346.3,0.8074]
[1734963518847,2.98738,3347.5,3346.5,0.8243]
[1734963519849,1.25761003,3347.9,3346.5,0.8243]
[1734963520041,2.98739,3347.4,3346.5,0.8243]
[1734963520914,2.98749,3347.3,3346.5,0.8243]
[1734963521132,2.9873,3347.5,3346.5,0.8243]
[1734963521330,2.98769,3347.1,3346.5,0.8243]
[1734963521637,2.98778,3347.0,3346.5,0.8243]
[1734963522149,2.98756,3347.3,3346.5,0.8243]
[1734963522308,2.98759,3347.2,3346.5,0.8243]
[1734963522644,1.195818,3347.3,3346.6,0.02988003]
[1734963522842,4.24460003,3347.9,3346.6,2.9881]
[1734963522843,2.98729,3347.6,3346.6,2.9881]
[1734963523006,2.98729,3347.6,3346.7,0.38124]
[1734963523749,2.98729,3347.6,3346.7,0.41111637]
[1734963524044,0.7703,3348.4,3346.8,0.79767637]
[1734963524201,0.7703,3348.4,3346.9,0.82817168]
[1734963524405,2.79072902,3347.6,3346.5,0.7983]
[1734963524601,2.98828,3346.5,3345.7,0.7983]
[1734963525007,3.018225,3346.4,3345.7,0.7983]
[1734963525207,2.98839,3346.3,3345.7,0.7983]
[1734963525447,0.029935,3346.6,3345.7,0.7983]
[1734963525750,2.98791,3346.9,3345.7,1.20227143]
[1734963525751,2.98836,3346.4,3345.7,1.20227143]
[1734963526111,2.98806,3346.7,3345.7,1.20227143]
[1734963526309,2.98806,3346.7,3345.7,3.78718]
[1734963526931,2.9882,3346.5,3345.7,0.7983]
[1734963527105,2.98792,3346.8,3345.7,0.7983]
[1734963527313,2.98826,3346.5,3345.7,0.7983]
[1734963527556,2.98826,3346.5,3344.4,1.49856462]
[1734963527557,0.7576,3346.6,3345.2,0.762]
[1734963527854,0.029935,3346.4,3345.2,0.762]
[1734963528145,2.98892,3345.7,3345.2,0.762]
[1734963529141,0.55,3346.5,3345.2,0.762]
[1734963529142,2.98873,3345.9,3345.2,0.762]
[1734963530106,2.98883,3345.8,3345.2,0.762]
[1734963530342,2.98895,3345.7,3345.2,0.762]
[1734963530952,2.98868,3346.0,3345.2,0.762]
[1734963531133,1.36556168,3346.5,3345.2,0.762]
[1734963531461,2.98858,3346.1,3345.2,0.762]
[1734963532257,4.35383168,3346.5,3345.2,0.762]
[1734963532258,1.36556168,3346.5,3345.2,0.762]
[1734963532549,2.9887,3346.0,3345.2,0.762]
[1734963533045,2.98849,3346.2,3345.2,0.762]
[1734963533248,0.8307,3346.8,3345.8,2.98881]
[1734963533419,2.98784,3346.9,3345.9,0.7896]
[1734963533623,3.0,3346.8,3345.9,0.7896]
[1734963534121,2.98762,3347.2,3345.9,0.7896]
[1734963534307,2.98762,3347.2,3346.0,3.74056]
[1734963534648,3.286442,3347.1,3346.0,4.114616]
[1734963535239,0.029935,3347.0,3346.0,0.752]
[1734963535611,2.98799,3346.8,3346.0,0.752]
[1734963536334,2.98775,3347.0,3346.0,0.752]
[1734963536651,2.98775,3347.0,3346.1,0.802]
[1734963537454,2.79072902,3347.2,3345.6,0.802]
[1734963537749,2.98833,3346.4,3345.6,0.802]
[1734963538454,2.98852,3346.2,3345.6,0.802]
[1734963538655,2.98864,3346.0,3345.6,0.802]
[1734963538850,2.98874,3345.9,3345.6,0.802]
[1734963539037,2.98871,3346.0,3345.6,0.802]
[1734963539347,2.98875,3345.9,3345.6,0.802]
[1734963539669,0.597708,3346.0,3345.6,0.802]
[1734963539814,2.98885,3345.8,3345.6,0.802]
[1734963540135,2.98846,3346.2,3345.6,0.802]
[1734963540308,2.98867,3346.0,3345.6,0.802]
[1734963541110,2.98883,3345.8,3345.6,0.802]
[1734963541310,3.0,3346.3,3345.2,0.8092]
[1734963541560,2.98902,3345.6,3345.2,0.8092]
[1734963541936,2.98876,3345.9,3345.2,0.8092]
[1734963542142,2.98857,3346.1,3345.2,0.8092]
[1734963542453,2.98857,3346.1,3344.5,4.24856462]
[1734963542454,2.98791,3346.9,3345.9,0.8258]
[1734963542637,4.82960298,3347.2,3345.9,0.8258]
[1734963542638,2.98811,3346.6,3345.9,0.8258]
[1734963542807,2.98795,3346.8,3345.9,0.8258]
[1734963543313,2.98863,3346.1,3345.9,0.8258]
[1734963543658,2.98834,3346.4,3345.0,1.3216]
[1734963543840,2.98891,3345.7,3345.0,1.3216]
[1734963544046,2.98891,3345.7,3345.2,1.24856462]
[1734963544350,3.287801,3345.7,3345.2,1.24856462]
[1734963544509,0.298891,3345.7,3345.2,1.24856462]
[1734963544708,2.98926,3345.3,3345.2,1.24856462]
[1734963545141,3.0,3345.9,3345.0,0.7716]
[1734963545352,2.9892,3345.4,3345.0,0.7716]
[1734963545517,2.989,3345.6,3345.0,0.7716]
[1734963545838,2.98935,3345.3,3345.0,0.7716]
[1734963547057,3.0,3346.0,3345.0,0.7716]
[1734963547228,2.98864,3346.0,3345.1,0.02989217]
[1734963547431,2.61313298,3346.6,3345.2,0.7864]
[1734963547648,2.98857,3346.1,3345.2,0.7864]
[1734963548019,0.029935,3346.0,3345.2,0.7864]
[1734963548254,2.98849,3346.2,3345.2,0.7864]
[1734963548561,2.98866,3346.0,3345.4,0.7659]
[1734963549068,0.029935,3345.9,3345.4,0.7659]
[1734963549222,0.029935,3346.5,3345.4,0.7659]
[1734963549420,2.98877,3345.9,3345.4,0.7659]
[1734963549656,0.849035,3345.8,3344.9,0.7976]
[1734963549882,0.8191,3345.8,3344.9,0.7976]
[1734963550063,2.98918,3345.4,3344.9,0.7976]
[1734963550417,0.8191,3345.8,3344.9,0.7976]
[1734963550567,0.029935,3345.7,3344.5,0.8327]
[1734963550751,2.98989,3344.6,3344.5,0.8327]
[1734963550941,2.99007,3344.4,3344.3,1.24856462]
[1734963551303,2.98992,3344.6,3344.3,1.24856462]
[1734963551501,2.98904,3345.6,3344.5,2.98997]
[1734963551802,3.0,3345.7,3344.6,4.31238365]
[1734963551964,2.98917,3345.5,3344.6,1.32257365]
[1734963552309,2.98921,3345.4,3344.6,0.8143]
[1734963553565,2.98902,3345.6,3344.6,3.80418]
[1734963554401,0.7642,3345.8,3344.6,0.8143]
[1734963554595,2.98907,3345.6,3344.6,0.8143]
[1734963554810,2.98907,3345.6,3344.6,3.80412]
[1734963555552,4.185422,3345.6,3344.6,3.80412]
[1734963555904,4.185422,3345.6,3344.7,0.380412]
[1734963559370,1.196352,3345.6,3344.6,0.8143]
[1734963559750,2.98911,3345.5,3344.6,0.8143]
[1734963559951,1.196352,3345.6,3344.6,0.8143]
[1734963560155,1.196352,3345.6,3345.1,2.98937]
[1734963560351,1.196352,3345.6,3345.3,2.98926]
[1734963560551,2.79072902,3346.6,3345.5,3.80615]
[1734963560552,3.0,3346.4,3345.5,3.80615]
[1734963560812,1.196187,3346.0,3345.5,3.80615]
[1734963561017,0.7564,3346.6,3345.5,0.8171]
[1734963561316,1.196017,3346.5,3346.1,0.7873]
[1734963561452,0.58584194,3346.8,3346.1,0.7873]
[1734963561805,1.195991,3346.7,3346.1,0.7873]
[1734963562381,1.195991,3346.7,3346.1,1.164893]
[1734963562613,1.84203298,3347.2,3346.3,2.9883]
[1734963562757,1.195895,3347.1,3346.3,2.9883]
[1734963562952,1.195895,3347.1,3346.1,3.77582]
[1734963563461,1.195895,3347.1,3346.1,0.7873]
[1734963563795,1.195895,3347.1,3346.1,3.77577]
[1734963563950,1.195895,3347.1,3346.3,0.7663]
[1734963564154,1.195895,3347.1,3346.5,2.98811]
[1734963564452,1.195895,3347.1,3346.5,2.98817]
[1734963564653,3.0,3347.4,3346.5,2.98817]
[1734963564868,0.029935,3347.3,3346.5,2.98817]
[1734963565355,0.029935,3347.3,3346.6,0.375447]
[1734963565856,0.029935,3347.4,3346.6,0.375447]
[1734963566061,0.029935,3347.4,3346.5,2.98817]
[1734963567398,1.195777,3347.6,3346.5,2.98817]
[1734963567803,2.98732,3347.5,3346.5,2.98817]
[1734963568309,1.195777,3347.6,3346.3,0.7663]
[1734963568609,0.5981824,3347.5,3346.3,3.75464]
[1734963568786,0.5981824,3347.5,3346.3,0.7663]
[1734963568955,2.98755,3347.3,3346.3,0.7663]
[1734963569665,3.0,3347.1,3346.3,0.7663]
[1734963570008,3.0,3347.0,3346.3,0.7663]
[1734963570907,5.98775,3347.0,3346.3,0.7663]
[1734963573482,0.769,3347.4,3346.3,0.7663]
[1734963573685,3.0,3347.1,3346.3,0.7663]
[1734963574607,0.769,3347.4,3346.3,0.7663]
[1734963574778,2.98776,3347.0,3346.3,0.7663]
[1734963575515,2.98785,3346.9,3346.3,0.7663]
[1734963575808,0.93490471,3347.3,3346.0,0.799]
[1734963576133,3.0,3346.7,3345.6,0.799]
[1734963576419,0.7768,3347.0,3345.6,0.799]
[1734963576570,2.98832,3346.4,3345.6,0.799]
[1734963577000,0.676442,3346.9,3345.6,0.799]
[1734963577322,3.0,3346.7,3345.6,0.799]
[1734963577504,3.0,3346.7,3345.2,0.8244]
[1734963577505,2.98889,3345.8,3345.2,0.8244]
[1734963577875,2.98876,3345.9,3345.0,1.24856462]
[1734963578177,2.98916,3345.5,3345.0,1.24856462]
[1734963578807,3.670786,3345.9,3345.0,1.24856462]
[1734963578808,2.98935,3345.3,3345.0,1.24856462]
[1734963579188,2.98935,3345.3,3344.9,0.8244]
[1734963579393,2.98961,3345.0,3344.4,0.8126]
[1734963580428,2.98974,3344.8,3344.4,0.8126]
[1734963580575,2.98974,3344.8,3344.2,0.7573]
[1734963580780,2.98988,3344.7,3344.2,0.7573]
[1734963581398,2.98989,3344.6,3344.2,0.7573]
[1734963581619,2.98989,3344.6,3343.9,0.7573]
[1734963581928,2.99016,3344.3,3343.6,0.7573]
[1734963582509,2.99056,3343.9,3343.5,1.24856462]
[1734963582677,2.9902,3344.3,3343.5,1.24856462]
[1734963582876,3.37566,3344.2,3343.2,0.7573]
[1734963583325,2.99071,3343.7,3343.2,0.7573]
[1734963583494,6.36595,3344.2,3343.2,0.7573]
[1734963583495,2.99088,3343.5,3343.2,0.7573]
[1734963583817,2.99079,3343.6,3343.2,0.7573]
[1734963584671,2.99058,3343.9,3343.2,0.7573]
[1734963585024,2.99066,3343.8,3343.2,0.7573]
[1734963585578,2.99105,3343.4,3342.5,0.7785]
[1734963586334,3.7917,3343.4,3342.1,0.7785]
[1734963586509,2.99132,3343.0,3342.1,0.7785]
[1734963586835,2.99158,3342.8,3342.1,0.7785]
[1734963587882,3.0,3342.9,3342.1,0.7785]
[1734963588090,2.99141,3342.9,3342.1,0.7785]
[1734963589215,3.290551,3342.9,3342.1,0.7785]
[1734963589715,2.99154,3342.8,3342.1,0.7785]
[1734963589917,2.99115,3343.2,3342.1,0.7785]
[1734963590120,2.99133,3343.0,3342.1,0.7785]
[1734963590320,3.0,3342.9,3342.1,0.7785]
[1734963590499,3.0,3342.9,3342.1,1.1725621]
[1734963590701,3.0,3343.0,3342.1,0.7785]
[1734963590897,0.7917,3343.4,3342.1,0.7785]
[1734963591254,3.0,3343.0,3342.1,0.7785]
[1734963591728,3.0,3342.9,3342.1,0.7785]
[1734963592035,3.0,3343.1,3342.1,0.7785]
[1734963592329,0.7917,3343.4,3342.1,1.1725631]
[1734963592539,3.0,3343.2,3342.1,0.7785]
[1734963592715,0.7917,3343.4,3342.1,0.7785]
[1734963593028,3.0,3343.0,3342.1,0.7785]
[1734963593235,3.0,3343.2,3342.1,0.7785]
[1734963593434,3.0,3343.1,3342.1,0.7785]
[1734963593640,0.678286,3343.1,3342.1,0.7785]
[1734963593929,3.0,3343.1,3342.1,0.7785]
[1734963594726,3.0,3342.9,3342.1,0.7785]
[1734963594924,3.0,3343.1,3342.1,0.7785]
[1734963595138,5.99125,3343.1,3342.1,0.7785]
[1734963595310,0.599125,3343.0,3342.1,0.7785]
[1734963595512,0.599125,3343.0,3342.1,3.77054]
[1734963595714,3.0,3343.3,3342.1,3.77054]
[1734963596044,0.599066,3343.7,3342.6,0.7981]
[1734963596312,0.7751,3344.6,3342.9,0.7981]
[1734963596479,0.7751,3344.9,3343.4,2.99096]
[1734963596632,0.7751,3344.9,3343.5,1.097196]
[1734963596956,2.98981,3344.7,3343.5,1.097196]
[1734963597260,2.98981,3344.7,3343.5,0.7981]
[1734963597445,0.7751,3344.9,3343.5,2.9908]
[1734963597644,1.84203298,3345.5,3343.9,0.8177]
[1734963597831,2.98934,3345.3,3344.1,3.80795]
[1734963598038,2.98937,3345.2,3344.1,0.8177]
[1734963598252,3.7714273,3345.2,3344.1,1.198519]
[1734963598758,3.0,3345.1,3344.1,1.198519]
[1734963599078,0.7679,3345.1,3344.1,0.8177]
[1734963599235,2.98962,3344.9,3344.1,0.8177]
[1734963599577,2.98988,3344.7,3344.1,0.8177]
[1734963599926,2.98963,3344.9,3344.1,0.8177]
[1734963600162,5.98956,3345.0,3344.1,0.8177]
[1734963600379,0.7820573,3345.2,3344.1,0.8177]
[1734963600538,2.98926,3345.4,3344.1,0.8177]
[1734963600727,0.7999,3345.5,3344.3,0.7696]
[1734963600923,3.54862902,3345.3,3343.9,0.7975]
[1734963601126,2.98999,3344.5,3343.9,0.7975]
[1734963601320,2.98959,3345.0,3343.9,0.7975]
[1734963601550,0.7579,3345.3,3343.9,0.7975]
[1734963601760,0.7579,3345.3,3343.7,2.99064]
[1734963601761,3.74719,3345.3,3344.2,0.772]
[1734963602022,0.59788421,3345.5,3344.2,0.772]
[1734963602259,5.98907,3345.6,3344.2,0.772]
[1734963602662,3.0,3345.6,3344.2,0.772]
[1734963602861,2.98918,3345.4,3344.2,0.772]
[1734963603040,2.98939,3345.2,3344.2,0.772]
[1734963603241,0.37997,3345.5,3344.2,0.772]
[1734963603444,3.0,3345.3,3344.2,0.772]
[1734963603841,0.782,3346.4,3344.8,2.98971]
[1734963604051,2.98893,3345.7,3344.9,0.833]
[1734963605151,3.0,3345.6,3344.9,0.833]
[1734963605746,3.0,3345.8,3344.9,0.833]
[1734963605953,0.59501349,3346.1,3344.9,0.833]
[1734963606168,3.0,3345.5,3344.9,0.833]
[1734963606381,0.598903,3345.4,3344.9,0.833]
[1734963607663,3.0,3345.7,3344.9,0.833]
[1734963608066,3.0,3345.5,3344.9,0.833]
[1734963608265,0.8222,3345.9,3344.2,2.79072902]
[1734963608266,3.0,3345.7,3344.2,0.7811]
[1734963608497,3.0,3345.5,3344.2,0.7811]
[1734963608993,2.98938,3345.2,3344.2,0.7811]
[1734963609158,3.588318,3345.2,3344.2,0.7811]
[1734963609363,2.98938,3345.2,3344.2,0.7811]
[1734963609860,2.98956,3345.0,3343.9,2.9905]
[1734963610190,0.779,3345.1,3344.0,2.99042]
[1734963610363,3.0,3345.1,3344.1,0.7969]
[1734963610559,2.98895,3345.7,3344.6,2.98984]
[1734963610786,0.376795,3345.7,3344.7,3.78669]
[1734963610984,3.0,3345.8,3344.8,2.98963]
[1734963611199,3.0,3345.8,3344.9,0.7969]
[1734963611425,5.98883,3345.8,3344.9,0.7969]
[1734963611602,3.779,3346.2,3344.9,0.7969]
[1734963612071,3.0,3346.0,3344.9,0.7969]
[1734963612272,3.0,3345.7,3344.9,0.7969]
[1734963612573,1.03601879,3345.9,3344.9,0.7969]
[1734963612771,4.36004795,3346.2,3344.9,0.7969]
[1734963612971,2.98945,3345.1,3344.5,0.7751]
[1734963613370,3.0,3345.2,3344.5,0.7751]
[1734963614509,3.0,3345.4,3344.5,0.7751]
[1734963614710,3.75413,3345.9,3343.7,2.99066]
[1734963614711,0.7654,3345.9,3344.7,0.7553]
[1734963615275,2.98929,3345.3,3344.7,0.7553]
[1734963615671,2.9891,3345.5,3344.7,0.7553]
[1734963615875,3.0,3345.6,3344.7,0.7553]
[1734963616087,1.196519,3345.7,3344.7,0.7553]
[1734963616287,1.196519,3345.7,3345.2,0.756]
[1734963616488,1.196519,3345.7,3345.5,3.74504]
[1734963616692,1.196519,3345.7,3345.6,0.37749333]
[1734963617210,3.86935279,3347.3,3345.9,0.8304]
[1734963617412,2.98777,3347.0,3345.9,0.8304]
[1734963617713,2.98785,3346.9,3345.9,0.8304]
[1734963618011,0.298785,3346.8,3345.9,0.8304]
[1734963618173,3.80279,3347.3,3345.9,0.8304]
[1734963618371,0.8153,3347.7,3345.9,0.8304]
[1734963618609,0.8153,3347.7,3346.0,0.8304]
[1734963618784,0.8153,3347.0,3346.0,0.8304]
[1734963618986,2.98755,3347.3,3346.0,0.8304]
[1734963619395,2.9876,3347.2,3346.0,2.98861]
[1734963619608,0.8153,3347.4,3346.2,0.8307]
[1734963619609,0.26057355,3347.3,3346.2,0.8307]
[1734963619810,0.26057355,3347.3,3346.2,3.81909]
[1734963620121,0.26057355,3347.3,3346.3,2.98834]
[1734963620411,2.98747,3347.4,3346.3,3.81906]
[1734963620616,2.98747,3347.4,3346.4,0.7697]
[1734963620617,3.0,3347.3,3346.4,0.7697]
[1734963620982,2.98712,3347.7,3346.5,2.98819]
[1734963621192,2.98712,3347.7,3346.6,0.7697]
[1734963621433,2.98718,3347.7,3346.7,0.375789]
[1734963621631,2.98719,3347.7,3346.7,0.375789]
[1734963621832,2.98719,3347.7,3346.6,0.7697]
[1734963622344,2.98714,3347.7,3346.7,0.7697]
[1734963622503,0.7743,3348.1,3346.7,0.7697]
[1734963622844,2.98685,3348.0,3346.7,0.7697]
[1734963623048,2.98703,3347.8,3346.7,0.7697]
[1734963623345,0.7877,3347.6,3345.9,0.8017]
[1734963623515,2.98812,3346.6,3345.9,0.8017]
[1734963623846,0.7877,3346.9,3345.9,0.8017]
[1734963624048,2.98809,3346.7,3345.9,0.8017]
[1734963624250,3.0,3346.8,3345.9,0.8017]
[1734963624413,3.0,3347.1,3345.9,3.79039]
[1734963624609,3.0,3347.0,3346.0,3.367649]
[1734963624810,3.57842902,3347.3,3345.9,0.8017]
[1734963625196,2.98884,3345.8,3344.9,0.8311]
[1734963625468,0.795,3346.6,3344.9,0.8311]
[1734963625645,2.98866,3346.0,3344.9,0.8311]
[1734963625952,2.98869,3346.0,3345.0,0.382079]
[1734963626108,3.0,3346.3,3345.0,0.382079]
[1734963626522,2.98879,3345.9,3344.9,0.8311]
[1734963627119,2.98886,3345.8,3344.9,0.8311]
[1734963627949,2.98886,3345.8,3344.9,0.7686824]
[1734963628462,3.0,3346.1,3344.9,0.7686824]
[1734963628660,3.28865,3346.0,3344.9,0.7686824]
[1734963628972,2.98865,3346.0,3344.9,3.7582924]
[1734963629531,3.0,3346.0,3345.0,2.9895]
[1734963630469,3.0,3346.3,3344.9,0.7686824]
[1734963630670,2.98866,3346.0,3344.9,0.7686824]
[1734963630874,0.598866,3346.0,3345.0,2.98947]
[1734963631169,2.98807,3346.7,3345.1,0.7845]
[1734963631382,2.98811,3346.6,3345.5,3.79158]
[1734963631736,2.98811,3346.6,3345.6,0.04626862]
[1734963632051,1.19609,3347.0,3345.8,0.8025]
[1734963632253,2.98801,3346.8,3345.8,0.8025]
[1734963632429,0.7961,3347.1,3345.9,0.04511968]
[1734963632624,2.98766,3347.1,3346.0,0.8247]
[1734963633077,2.98766,3347.1,3346.2,0.8247]
[1734963633572,2.98766,3347.1,3346.3,0.04471255]
[1734963633894,3.0,3346.9,3346.2,0.8247]
[1734963634199,3.598775,3346.9,3346.3,0.04471255]
[1734963634694,0.8156,3346.8,3346.3,0.04471255]
[1734963635041,0.8156,3346.8,3345.8,0.7743]
[1734963635245,0.8156,3346.8,3346.4,0.04445857]
[1734963635440,0.8156,3346.8,3345.8,0.7743]
[1734963635897,2.98811,3346.6,3345.9,0.04458303]
[1734963638153,2.98826,3346.5,3345.9,0.04458303]
[1734963638969,3.298811,3346.6,3345.9,0.04458303]
[1734963639169,3.0,3346.8,3345.9,0.04458303]
[1734963639569,2.98826,3346.5,3345.9,0.04458303]
[1734963640565,2.98804,3346.7,3345.9,0.04458303]
[1734963640962,3.0,3346.6,3345.9,0.04458303]
[1734963641970,2.98726,3347.6,3346.5,2.98811]
[1734963642202,2.98726,3347.6,3346.7,2.988]
[1734963642379,2.98726,3347.6,3346.8,0.04446754]
[1734963642704,2.98758,3347.2,3346.6,0.7959]